[Event "84th ESP-ch 2019"]
[Site "Marbella"]
[Date "2019.11.24"]
[Round "9.7"]
[White "Santos Latasa, Jaime"]
[Black "Diaz Camallonga, Carles"]
[Result "1-0"]
[ECO "D31"]
[WhiteElo "2581"]
[BlackElo "2465"]
[Annotator "ChessBase"]
[PlyCount "153"]
[EventDate "2019.11.16"]
[EventType "swiss"]
[EventCountry "ESP"]
[SourceTitle "playchess.com"]
[Source "ChessBase"]
[SourceQuality "1"]
[TimeControl "5400+30"]

1. d4 {[%emt 0:00:00]} e6 {[%emt 0:00:00]} 2. c4 {[%emt 0:00:00]} d5 {[%emt 0:00:00]} 3. Nc3 {[%emt 0:01:11]} Be7 {[%emt 0:00:00]} 4. cxd5 {[%emt 0:00:15]} exd5 {[%emt 0:00:00]} 5. Bf4 {[%emt 0:00:08]} c6 {[%emt 0:00:00]} 6. e3 {[%emt 0:00:10]} Bf5 {[%emt 0:00:25]} 7. Nge2 {[%emt 0:00:45]} g6 {[%emt 0:04:27]} 8. Ng3 {[%emt 0:02:50]} Be6 {[%emt 0:00:05]} 9. Bd3 {[%emt 0:00:21]} Nd7 {[%emt 0:04:09]} 10. Nge2 {[%emt 0:00:43]} Ngf6 {[%emt 0:00:44]} 11. h3 {[%emt 0:01:39]} Nb6 {[%emt 0:05:20]} 12. Qc2 {[%emt 0:07:10]} Nh5 {[%emt 0:05:00]} 13. Be5 {[%emt 0:00:48]} f6 {[%emt 0:02:22]} 14. Bh2 {[%emt 0:00:16]} f5 {[%emt 0:14:51]} 15. g4 {[%emt 0:02:03]} Ng7 {[%emt 0:00:21]} 16. O-O-O {[%emt 0:03:48]} Rf8 {[%emt 0:03:31]} 17. Nf4 {[%emt 0:03:52]} Qd7 {[%emt 0:02:22]} 18. f3 {[%emt 0:02:26]} Bd6 {[%emt 0:03:45]} 19. Rhf1 {[%emt 0:00:59]} O-O-O {[%emt 0:05:28]} 20. e4 fxe4 {[%emt 0:04:18]} 21. fxe4 {[%emt 0:01:45]} Kb8 {[%emt 0:00:04]} 22. Kb1 {[%emt 0:00:31]} Ka8 {[%emt 0:02:22]} 23. e5 {[%emt 0:13:02]} Be7 {[%emt 0:00:21]} 24. Bg3 {[%emt 0:00:33]} Bg8 {[%emt 0:02:39]} 25. Rf2 {[%emt 0:09:00]} Ne6 {[%emt 0:02:02]} 26. Nxe6 {[%emt 0:00:14]} Bxe6 {[%emt 0:00:05]} 27. Rdf1 {[%emt 0:00:24]} Rxf2 {[%emt 0:03:12]} 28. Qxf2 {[%emt 0:00:13]} Rc8 {[%emt 0:00:11]} 29. Bh4 {[%emt 0:07:19]} Bb4 {[%emt 0:05:56]} 30. Rc1 {[%emt 0:01:03]} a6 {[%emt 0:07:00]} 31. a3 {[%emt 0:00:58]} Bf8 {[%emt 0:01:21]} 32. Bg5 {[%emt 0:03:49]} c5 {[%emt 0:04:43]} 33. Be3 {[%emt 0:00:10]} c4 {[%emt 0:00:14]} 34. Bc2 {[%emt 0:00:04]} Be7 {[%emt 0:00:21]} 35. Rf1 {[%emt 0:00:41]} Ka7 {[%emt 0:01:53]} 36. Qd2 {[%emt 0:00:30]} Na8 {[%emt 0:03:30]} 37. Na4 {[%emt 0:02:28]} b6 {[%emt 0:00:11]} 38. Bg5 {[%emt 0:00:59]} Bf8 {[%emt 0:00:54]} 39. Rf3 {[%emt 0:01:34]} Rb8 {[%emt 0:06:03]} 40. Kc1 {[%emt 0:04:39]} Rc8 {[%emt 0:00:42]} 41. Kb1 {[%emt 0:01:44]} Rb8 {[%emt 0:00:05]} 42. Qf2 {[%emt 0:00:27]} Bg7 {[%emt 0:00:17]} 43. Bd2 {[%emt 0:00:49]} Nc7 {[%emt 0:01:02]} 44. Bb4 {[%emt 0:00:38]} Nb5 {[%emt 0:01:53]} 45. Nc3 {[%emt 0:00:30]} Nxc3+ {[%emt 0:00:23]} 46. bxc3 {[%emt 0:00:17]} Qe8 {[%emt 0:01:24]} 47. g5 {[%emt 0:01:08]} Rb7 {[%emt 0:01:14]} 48. h4 {[%emt 0:03:05]} Rf7 {[%emt 0:01:04]} 49. Rxf7+ {[%emt 0:00:07]} Qxf7 {[%emt 0:00:11]} 50. Qxf7+ {[%emt 0:00:08]} Bxf7 {[%emt 0:00:02]} 51. Ba4 {[%emt 0:00:23]} b5 {[%emt 0:02:40]} 52. Bc2 {[%emt 0:00:15]} Be6 {[%emt 0:00:33]} 53. a4 {[%emt 0:00:17]} Kb6 {[%emt 0:00:55]} 54. axb5 {[%emt 0:00:18]} axb5 {[%emt 0:00:09]} 55. Kb2 {[%emt 0:00:06]} Kc6 {[%emt 0:01:45]} 56. Ka3 {[%emt 0:00:38]} Bg4 {[%emt 0:02:19]} 57. Bd6 {[%emt 0:01:08]} Be6 {[%emt 0:00:14]} 58. Kb4 {[%emt 0:01:16]} Bg4 {[%emt 0:00:06]} 59. Ka5 {[%emt 0:01:26]} Bc8 {[%emt 0:00:06]} 60. Ba3 {[%emt 0:00:57]} Bg4 {[%emt 0:00:22]} 61. Ka6 {[%emt 0:01:23]} Bc8+ {[%emt 0:00:13]} 62. Ka7 {[%emt 0:00:08]} Bg4 {[%emt 0:00:04]} 63. Kb8 {[%emt 0:00:06]} Be6 {[%emt 0:00:12]} 64. Bd1 {[%emt 0:00:29]} Bf5 {[%emt 0:02:27]} 65. Bb4 {[%emt 0:00:48]} Be6 {[%emt 0:00:15]} 66. Be7 {[%emt 0:02:43]} Kd7 {[%emt 0:00:46]} 67. Ba3 {[%emt 0:03:07]} Kc6 {[%emt 0:00:11]} 68. h5 {[%emt 0:00:26]} gxh5 {[%emt 0:00:20]} 69. Bxh5 {[%emt 0:00:10]} h6 {[%emt 0:01:51]} 70. Be8+ {[%emt 0:00:08]} Bd7 {[%emt 0:00:19]} 71. Bf7 {[%emt 0:00:05]} hxg5 {[%emt 0:00:42]} 72. e6 {[%emt 0:00:06]} Bxe6 {[%emt 0:00:19]} 73. Bxe6 {[%emt 0:00:06]} Bxd4 {[%emt 0:00:34]} 74. cxd4 {[%emt 0:00:12]} c3 {[%emt 0:00:27]} 75. Bc5 {[%emt 0:01:07]} c2 {[%emt 0:00:41]} 76. Kc8 {[%emt 0:00:06]} c1=Q {[%emt 0:00:05]} 77. Bd7# 1-0

[Event "84th ESP-ch 2019"]
[Site "Marbella"]
[Date "2019.11.24"]
[Round "9.8"]
[White "Merario Alarcon, Andres"]
[Black "Arizmendi Martinez, Julen Luis"]
[Result "1-0"]
[ECO "D31"]
[WhiteElo "2394"]
[BlackElo "2517"]
[Annotator "ChessBase"]
[PlyCount "79"]
[EventDate "2019.11.16"]
[EventType "swiss"]
[EventCountry "ESP"]
[SourceTitle "playchess.com"]
[Source "ChessBase"]
[SourceQuality "1"]
[TimeControl "5400+30"]

1. d4 {[%emt 0:00:00]} d5 {[%emt 0:02:39]} 2. c4 {[%emt 0:00:00]} e6 {[%emt 0:00:23]} 3. Nc3 {[%emt 0:00:00]} Bb4 {[%emt 0:01:26]} 4. Nf3 {[%emt 0:00:23]} Ne7 {[%emt 0:09:16]} 5. Qa4+ {[%emt 0:00:23]} Nbc6 {[%emt 0:00:23]} 6. e3 {[%emt 0:00:44]} O-O {[%emt 0:02:26]} 7. Bd2 {[%emt 0:00:13]} b6 {[%emt 0:12:40]} 8. a3 {[%emt 0:09:24]} Bd6 {[%emt 0:04:13]} 9. cxd5 exd5 {[%emt 0:06:02]} 10. Nxd5 {[%emt 0:05:47]} Bb7 {[%emt 0:03:53]} 11. Ba6 {[%emt 0:05:16]} Bxa6 {[%emt 0:09:44]} 12. Nxe7+ {[%emt 0:00:29]} Qxe7 {[%emt 0:00:07]} 13. Qxa6 {[%emt 0:00:22]} Qe4 {[%emt 0:00:24]} 14. O-O {[%emt 0:02:27]} Nb8 {[%emt 0:04:23]} 15. Qc4 {[%emt 0:03:59]} a5 {[%emt 0:00:16]} 16. Rac1 {[%emt 0:05:39]} Nd7 {[%emt 0:01:51]} 17. Qc6 {[%emt 0:02:58]} Qxc6 {[%emt 0:03:45]} 18. Rxc6 {[%emt 0:00:12]} f5 {[%emt 0:00:02]} 19. Rfc1 {[%emt 0:06:52]} h6 {[%emt 0:09:28]} 20. Be1 {[%emt 0:04:05]} Nf6 {[%emt 0:11:52]} 21. Nd2 {[%emt 0:07:28]} Nd5 {[%emt 0:00:12]} 22. g3 {[%emt 0:04:50]} Kf7 {[%emt 0:02:07]} 23. Nc4 {[%emt 0:02:48]} Ke6 {[%emt 0:01:32]} 24. f3 {[%emt 0:12:39]} Ne7 {[%emt 0:02:35]} 25. Nxd6 {[%emt 0:01:40]} Nxc6 {[%emt 0:00:15]} 26. Nb5 {[%emt 0:00:07]} Kd7 {[%emt 0:04:34]} 27. d5 {[%emt 0:00:07]} Ne7 {[%emt 0:00:49]} 28. Rxc7+ {[%emt 0:01:24]} Kd8 {[%emt 0:00:03]} 29. d6 {[%emt 0:02:23]} Nd5 {[%emt 0:00:02]} 30. Rxg7 {[%emt 0:00:57]} Rc8 {[%emt 0:00:07]} 31. Nc3 {[%emt 0:05:26]} Nf6 {[%emt 0:00:23]} 32. g4 {[%emt 0:07:40]} Rc6 {[%emt 0:00:14]} 33. Bg3 {[%emt 0:00:46]} fxg4 {[%emt 0:02:20]} 34. e4 {[%emt 0:00:44]} gxf3 {[%emt 0:04:52]} 35. e5 {[%emt 0:00:50]} f2+ {[%emt 0:01:21]} 36. Bxf2 {[%emt 0:03:09]} Nh5 {[%emt 0:00:01]} 37. Bh4+ {[%emt 0:00:18]} Kc8 {[%emt 0:00:03]} 38. d7+ {[%emt 0:00:17]} Kb8 {[%emt 0:00:01]} 39. Rf7 {[%emt 0:02:43]} Rg6+ {[%emt 0:00:18]} 40. Kh1 {[%emt 0:00:01]} 1-0

[Event "84th ESP-ch 2019"]
[Site "Marbella"]
[Date "2019.11.24"]
[Round "9.9"]
[White "Garcia Ramos, Daniel"]
[Black "Huerga Leache, Mikel"]
[Result "0-1"]
[ECO "C00"]
[WhiteElo "2350"]
[BlackElo "2456"]
[Annotator "ChessBase"]
[PlyCount "100"]
[EventDate "2019.11.16"]
[EventType "swiss"]
[EventCountry "ESP"]
[SourceTitle "playchess.com"]
[Source "ChessBase"]
[SourceQuality "1"]
[TimeControl "5400+30"]

1. e4 {[%emt 0:00:00]} e6 {[%emt 0:01:24]} 2. d4 {[%emt 0:00:00]} d5 {[%emt 0:00:05]} 3. Bd3 {[%emt 0:00:00]} c5 {[%emt 0:00:14]} 4. exd5 {[%emt 0:00:00]} exd5 {[%emt 0:00:06]} 5. Nf3 {[%emt 0:00:59]} c4 {[%emt 0:00:08]} 6. Be2 {[%emt 0:00:04]} Nf6 {[%emt 0:00:04]} 7. O-O {[%emt 0:00:17]} Bd6 {[%emt 0:00:06]} 8. b3 {[%emt 0:00:38]} cxb3 {[%emt 0:00:06]} 9. axb3 {[%emt 0:00:04]} O-O {[%emt 0:00:08]} 10. c4 {[%emt 0:02:46]} Nc6 {[%emt 0:00:08]} 11. Nc3 {[%emt 0:00:29]} Bb4 {[%emt 0:00:08]} 12. Bb2 {[%emt 0:03:04]} Bf5 {[%emt 0:00:17]} 13. Ra4 {[%emt 0:06:54]} a5 {[%emt 0:02:04]} 14. Ne5 {[%emt 0:04:27]} Qd6 {[%emt 0:18:39]} 15. Nb5 {[%emt 0:08:20]} Qe7 {[%emt 0:00:43]} 16. Bf3 {[%emt 0:05:17]} Rfd8 {[%emt 0:04:28]} 17. c5 {[%emt 0:21:11]} Nxe5 {[%emt 0:06:17]} 18. dxe5 {[%emt 0:00:39]} Ne4 {[%emt 0:01:49]} 19. Nd6 {[%emt 0:02:59]} Bd7 {[%emt 0:00:33]} 20. Rxb4 {[%emt 0:09:57]} axb4 {[%emt 0:01:10]} 21. Qxd5 {[%emt 0:00:31]} Bc6 {[%emt 0:06:40]} 22. Qd4 {[%emt 0:00:54]} Ng5 {[%emt 0:06:35]} 23. Bxc6 {[%emt 0:02:31]} bxc6 {[%emt 0:00:06]} 24. Qxb4 {[%emt 0:09:09]} Ra2 {[%emt 0:03:21]} 25. Bd4 {[%emt 0:05:48]} Rda8 {[%emt 0:02:54]} 26. Qc3 {[%emt 0:01:36]} Qd7 {[%emt 0:01:31]} 27. h4 Ne6 {[%emt 0:00:25]} 28. Be3 {[%emt 0:04:22]} Nc7 {[%emt 0:00:32]} 29. Qd4 {[%emt 0:01:05]} Nd5 {[%emt 0:00:41]} 30. h5 {[%emt 0:01:36]} h6 {[%emt 0:02:53]} 31. Qe4 {[%emt 0:02:51]} Rb8 {[%emt 0:06:29]} 32. Nf5 {[%emt 0:01:33]} Rb4 {[%emt 0:01:35]} 33. Qf3 {[%emt 0:00:09]} Kh7 {[%emt 0:07:39]} 34. Nd6 {[%emt 0:01:14]} Rxb3 {[%emt 0:04:39]} 35. Re1 {[%emt 0:04:20]} Nxe3 {[%emt 0:04:14]} 36. Qe4+ {[%emt 0:00:54]} Kg8 {[%emt 0:00:58]} 37. Rxe3 {[%emt 0:00:05]} Ra1+ {[%emt 0:02:35]} 38. Kh2 {[%emt 0:00:05]} Rxe3 {[%emt 0:01:31]} 39. fxe3 {[%emt 0:00:28]} Qe7 {[%emt 0:02:11]} 40. Qf4 {[%emt 0:02:10]} Rc1 {[%emt 0:02:06]} 41. Ne4 {[%emt 0:00:06]} Kh8 {[%emt 0:00:59]} 42. Kg3 {[%emt 0:00:54]} Rh1 {[%emt 0:02:01]} 43. Nd6 {[%emt 0:00:27]} Rxh5 {[%emt 0:01:01]} 44. Qxf7 {[%emt 0:00:33]} Qxe5+ {[%emt 0:00:51]} 45. Kf2 {[%emt 0:00:22]} Qf6+ {[%emt 0:00:35]} 46. Qxf6 {[%emt 0:00:39]} gxf6 {[%emt 0:00:05]} 47. Ne4 {[%emt 0:00:09]} Re5 {[%emt 0:00:12]} 48. Kf3 {[%emt 0:00:26]} Kg7 {[%emt 0:00:32]} 49. Kf4 {[%emt 0:00:08]} h5 {[%emt 0:00:38]} 50. g3 {[%emt 0:00:51]} Kg6 {[%emt 0:00:23]} 0-1

[Event "84th ESP-ch 2019"]
[Site "Marbella"]
[Date "2019.11.24"]
[Round "9.10"]
[White "Mingarro Carceller, Sergi"]
[Black "Valmana Canto, Jaime"]
[Result "1-0"]
[ECO "C07"]
[WhiteElo "2329"]
[BlackElo "2416"]
[Annotator "NA"]
[PlyCount "57"]
[EventDate "2019.11.16"]
[EventType "swiss"]
[EventCountry "ESP"]
[SourceTitle "playchess.com"]
[Source "ChessBase"]
[SourceQuality "1"]
[TimeControl "5400+30"]

1. e4 {[%emt 0:00:22]} e6 {[%emt 0:05:43]} 2. d4 {[%emt 0:00:18]} d5 {[%emt 0:00:14]} 3. Nd2 {[%emt 0:00:12]} c5 {[%emt 0:00:06]} 4. exd5 {[%emt 0:00:13]} Qxd5 {[%emt 0:00:09]} 5. Ngf3 {[%emt 0:00:22]} cxd4 {[%emt 0:00:08]} 6. Bc4 {[%emt 0:00:15]} Qd7 {[%emt 0:00:22]} 7. O-O {[%emt 0:02:01]} Nc6 {[%emt 0:00:26]} 8. Nb3 {[%emt 0:03:15]} Nf6 {[%emt 0:00:10]} 9. Qe2 {[%emt 0:01:38]} a6 {[%emt 0:05:56]} 10. a4 {[%emt 0:00:33]} Qc7 {[%emt 0:12:57]} 11. Rd1 {[%emt 0:07:50]} Bd7 {[%emt 0:00:10]} 12. Nbxd4 {[%emt 0:05:36]} O-O-O {[%emt 0:03:49]} 13. Nxc6 {[%emt 0:18:05]} Bxc6 {[%emt 0:00:09]} 14. Rxd8+ {[%emt 0:00:08]} Kxd8 {[%emt 0:00:12]} 15. Ne5 {[%emt 0:01:03]} Bd6 {[%emt 0:31:40]} 16. Bf4 {[%emt 0:08:14]} Rf8 {[%emt 0:00:11]} 17. Nxc6+ {[%emt 0:08:24]} Qxc6 {[%emt 0:03:25]} 18. Bxd6 {[%emt 0:02:16]} Qxd6 {[%emt 0:00:09]} 19. Rd1 {[%emt 0:00:22]} Nd5 {[%emt 0:00:09]} 20. Qh5 {[%emt 0:10:20]} Kc7 {[%emt 0:14:22]} 21. Bxd5 {[%emt 0:01:37]} exd5 {[%emt 0:00:08]} 22. Qxh7 {[%emt 0:01:09]} Qe5 {[%emt 0:02:59]} 23. Qd3 {[%emt 0:05:28]} Qxb2 {[%emt 0:00:48]} 24. Qxd5 {[%emt 0:00:17]} Qb4 {[%emt 0:05:51]} 25. Qe5+ {[%emt 0:01:46]} Kc8 {[%emt 0:00:06]} 26. c3 {[%emt 0:09:00]} Qa3 {[%emt 0:02:46]} 27. Qxg7 {[%emt 0:00:35]} Re8 {[%emt 0:00:56]} 28. Qd4 {[%emt 0:01:34]} Kb8 {[%emt 0:00:34]} 29. h4 {[%emt 0:00:48]} 1-0

[Event "84th ESP-ch 2019"]
[Site "Marbella"]
[Date "2019.11.24"]
[Round "9.11"]
[White "Garza Marco, Sergio"]
[Black "Vega Gutierrez, Sabrina"]
[Result "1-0"]
[ECO "D30"]
[WhiteElo "2400"]
[BlackElo "2374"]
[Annotator "NA"]
[PlyCount "129"]
[EventDate "2019.11.16"]
[EventType "swiss"]
[EventCountry "ESP"]
[SourceTitle "playchess.com"]
[Source "ChessBase"]
[SourceQuality "1"]
[TimeControl "5400+30"]

1. d4 {[%emt 0:00:00]} d5 {[%emt 0:00:00]} 2. c4 {[%emt 0:00:00]} e6 {[%emt 0:00:12]} 3. Nf3 {[%emt 0:00:00]} Nf6 {[%emt 0:00:40]} 4. e3 {[%emt 0:04:05]} c6 {[%emt 0:05:51]} 5. Bd3 {[%emt 0:00:58]} Nbd7 {[%emt 0:06:43]} 6. b3 {[%emt 0:00:24]} Bd6 {[%emt 0:01:04]} 7. Bb2 {[%emt 0:00:10]} Qe7 {[%emt 0:05:10]} 8. Ne5 {[%emt 0:02:16]} Bb4+ {[%emt 0:09:45]} 9. Nd2 {[%emt 0:07:45]} Ne4 {[%emt 0:08:58]} 10. Bxe4 {[%emt 0:00:18]} dxe4 {[%emt 0:00:10]} 11. O-O {[%emt 0:00:16]} f5 {[%emt 0:03:58]} 12. a3 {[%emt 0:05:27]} Bxd2 {[%emt 0:03:49]} 13. Qxd2 {[%emt 0:00:06]} O-O {[%emt 0:00:29]} 14. Nxd7 {[%emt 0:03:11]} Bxd7 {[%emt 0:00:30]} 15. a4 {[%emt 0:00:06]} Rfd8 {[%emt 0:03:38]} 16. Ba3 {[%emt 0:00:38]} Qf6 {[%emt 0:02:46]} 17. Bd6 {[%emt 0:00:19]} Be8 {[%emt 0:00:48]} 18. c5 {[%emt 0:06:36]} Bh5 {[%emt 0:08:23]} 19. Ra2 {[%emt 0:04:26]} h6 {[%emt 0:07:21]} 20. b4 {[%emt 0:01:50]} a6 {[%emt 0:00:13]} 21. Rb1 {[%emt 0:15:19]} Be8 {[%emt 0:07:24]} 22. Bc7 {[%emt 0:03:27]} Rdc8 {[%emt 0:00:17]} 23. Be5 {[%emt 0:00:07]} Qd8 {[%emt 0:00:43]} 24. Bd6 {[%emt 0:00:43]} Kh7 {[%emt 0:04:35]} 25. Qe2 {[%emt 0:01:46]} Qh4 {[%emt 0:01:21]} 26. Qc4 {[%emt 0:01:15]} Bd7 {[%emt 0:00:03]} 27. Rf1 {[%emt 0:02:04]} Re8 {[%emt 0:01:22]} 28. Rb2 {[%emt 0:00:49]} Rg8 {[%emt 0:03:15]} 29. Bg3 {[%emt 0:01:20]} Qe7 {[%emt 0:05:14]} 30. Qc2 {[%emt 0:00:44]} Be8 {[%emt 0:00:41]} 31. h3 {[%emt 0:00:25]} Qd7 {[%emt 0:04:14]} 32. Bd6 {[%emt 0:00:08]} Bh5 {[%emt 0:01:08]} 33. Rfb1 {[%emt 0:00:23]} Be8 {[%emt 0:01:33]} 34. Qd1 {[%emt 0:00:56]} Qf7 {[%emt 0:00:46]} 35. f3 {[%emt 0:01:33]} exf3 {[%emt 0:01:13]} 36. Qxf3 {[%emt 0:00:09]} g5 {[%emt 0:00:28]} 37. Rf1 {[%emt 0:01:07]} g4 {[%emt 0:02:22]} 38. hxg4 {[%emt 0:00:05]} Rxg4 {[%emt 0:00:05]} 39. b5 {[%emt 0:00:14]} axb5 {[%emt 0:00:12]} 40. axb5 {[%emt 0:00:08]} Qg8 {[%emt 0:01:53]} 41. Bf4 {[%emt 0:00:38]} Ra5 {[%emt 0:00:39]} 42. Be5 {[%emt 0:03:43]} Qg5 {[%emt 0:00:30]} 43. Rfb1 {[%emt 0:01:19]} Re4 {[%emt 0:00:29]} 44. Bf4 {[%emt 0:00:20]} Qg7 {[%emt 0:00:28]} 45. b6 {[%emt 0:00:47]} Ra3 {[%emt 0:00:21]} 46. Rd1 {[%emt 0:01:07]} Bg6 {[%emt 0:00:35]} 47. Kf2 {[%emt 0:00:19]} Qf7 {[%emt 0:00:38]} 48. Rh1 {[%emt 0:00:21]} h5 {[%emt 0:00:01]} 49. Rd2 {[%emt 0:00:26]} Qe8 {[%emt 0:00:41]} 50. Qg3 {[%emt 0:00:34]} Qe7 {[%emt 0:00:49]} 51. Rh3 {[%emt 0:01:28]} Ra8 {[%emt 0:00:18]} 52. Qf3 {[%emt 0:00:18]} Qf7 {[%emt 0:00:15]} 53. Rg3 {[%emt 0:00:16]} Rd8 54. Rd1 {[%emt 0:01:03]} Ra8 {[%emt 0:01:17]} 55. Rg5 {[%emt 0:02:02]} Ra2+ {[%emt 0:00:34]} 56. Kg3 {[%emt 0:00:24]} Ra8 {[%emt 0:00:36]} 57. Rh1 {[%emt 0:00:10]} Ra3 {[%emt 0:00:27]} 58. Rh3 {[%emt 0:02:46]} Qe8 {[%emt 0:00:33]} 59. Kh2 {[%emt 0:00:11]} e5 {[%emt 0:00:30]} 60. dxe5 {[%emt 0:01:35]} Rxe5 {[%emt 0:00:03]} 61. Rxg6 {[%emt 0:04:06]} Kxg6 {[%emt 0:00:46]} 62. Qxh5+ {[%emt 0:00:07]} Kf6 {[%emt 0:00:18]} 63. Qh7 {[%emt 0:00:26]} Ke6 {[%emt 0:00:23]} 64. Bxe5 {[%emt 0:01:21]} Kxe5 {[%emt 0:00:11]} 65. Qg7+ {[%emt 0:00:45]} 1-0

[Event "84th ESP-ch 2019"]
[Site "Marbella"]
[Date "2019.11.24"]
[Round "9.12"]
[White "Gines Esteo, Pedro Antonio"]
[Black "Moral Garcia, Serafin"]
[Result "1-0"]
[ECO "A04"]
[WhiteElo "2463"]
[BlackElo "2267"]
[Annotator "ChessBase"]
[PlyCount "185"]
[EventDate "2019.11.16"]
[EventType "swiss"]
[EventCountry "ESP"]
[SourceTitle "playchess.com"]
[Source "ChessBase"]
[SourceQuality "1"]
[TimeControl "5400+30"]

1. Nf3 {[%emt 0:00:00]} g6 {[%emt 0:00:00]} 2. d4 Bg7 {[%emt 0:00:00]} 3. c4 {[%emt 0:00:08]} Nf6 {[%emt 0:00:05]} 4. Nc3 {[%emt 0:00:04]} d5 {[%emt 0:00:41]} 5. cxd5 {[%emt 0:01:14]} Nxd5 {[%emt 0:00:29]} 6. Na4 {[%emt 0:00:16]} O-O {[%emt 0:02:12]} 7. e4 {[%emt 0:02:17]} Nb6 {[%emt 0:00:12]} 8. Be3 {[%emt 0:02:03]} Bg4 {[%emt 0:06:23]} 9. Nc5 {[%emt 0:11:20]} Nc6 {[%emt 0:05:10]} 10. d5 {[%emt 0:01:11]} Ne5 {[%emt 0:03:09]} 11. Rc1 {[%emt 0:00:18]} Rb8 {[%emt 0:05:21]} 12. h3 {[%emt 0:16:15]} Bxf3 {[%emt 0:00:55]} 13. gxf3 {[%emt 0:00:06]} Ned7 {[%emt 0:00:17]} 14. b4 {[%emt 0:03:12]} c6 {[%emt 0:04:32]} 15. dxc6 {[%emt 0:01:14]} bxc6 {[%emt 0:00:13]} 16. Na6 {[%emt 0:09:03]} Rb7 {[%emt 0:03:27]} 17. Qc2 {[%emt 0:01:05]} Ne5 {[%emt 0:03:27]} 18. Be2 {[%emt 0:02:56]} Rd7 {[%emt 0:07:45]} 19. Nc5 {[%emt 0:00:16]} Rc7 {[%emt 0:00:17]} 20. a4 {[%emt 0:11:16]} e6 {[%emt 0:08:28]} 21. a5 {[%emt 0:02:14]} Na8 {[%emt 0:00:40]} 22. f4 {[%emt 0:11:34]} Nd7 {[%emt 0:00:06]} 23. Na6 {[%emt 0:00:06]} Rc8 {[%emt 0:00:16]} 24. O-O {[%emt 0:05:51]} Qh4 {[%emt 0:05:19]} 25. e5 {[%emt 0:02:12]} g5 {[%emt 0:04:02]} 26. fxg5 {[%emt 0:01:54]} Qxh3 {[%emt 0:02:25]} 27. Qe4 {[%emt 0:00:15]} Nxe5 {[%emt 0:00:55]} 28. Qg2 {[%emt 0:07:32]} Qf5 {[%emt 0:01:00]} 29. Rc5 {[%emt 0:00:39]} Qg6 {[%emt 0:02:05]} 30. f4 {[%emt 0:00:32]} Nd7 {[%emt 0:01:44]} 31. Rxc6 {[%emt 0:00:29]} Rxc6 {[%emt 0:01:06]} 32. Qxc6 {[%emt 0:00:05]} Nf6 {[%emt 0:00:01]} 33. Kh2 {[%emt 0:01:46]} Nd5 {[%emt 0:03:02]} 34. f5 {[%emt 0:01:38]} Be5+ {[%emt 0:00:01]} 35. Kh1 {[%emt 0:00:36]} Qg7 {[%emt 0:00:03]} 36. Bd2 {[%emt 0:00:35]} Nac7 {[%emt 0:02:14]} 37. Nc5 {[%emt 0:04:40]} exf5 {[%emt 0:05:40]} 38. Rxf5 {[%emt 0:00:17]} Ne7 {[%emt 0:04:59]} 39. Qe4 {[%emt 0:00:23]} Nxf5 {[%emt 0:00:01]} 40. Qxf5 {[%emt 0:00:02]} Rd8 {[%emt 0:01:48]} 41. Bd3 {[%emt 0:00:15]} Nd5 {[%emt 0:00:43]} 42. Nd7 {[%emt 0:00:50]} Nf4 {[%emt 0:02:08]} 43. Bxf4 {[%emt 0:01:13]} Bxf4 {[%emt 0:01:33]} 44. Nf6+ {[%emt 0:00:14]} Kh8 {[%emt 0:00:26]} 45. Qxf4 {[%emt 0:00:11]} h6 {[%emt 0:01:19]} 46. gxh6 {[%emt 0:00:57]} Qf8 {[%emt 0:00:01]} 47. Nd7 {[%emt 0:01:43]} Qe7 {[%emt 0:00:54]} 48. Qe5+ {[%emt 0:00:26]} Qxe5 {[%emt 0:00:04]} 49. Nxe5 {[%emt 0:00:04]} Kg8 {[%emt 0:00:13]} 50. Bc4 {[%emt 0:00:47]} Rd4 {[%emt 0:00:28]} 51. Kg2 {[%emt 0:00:43]} Kh7 {[%emt 0:00:34]} 52. Bxf7 {[%emt 0:00:31]} Rxb4 {[%emt 0:01:04]} 53. Nc6 {[%emt 0:00:26]} Rb5 {[%emt 0:02:40]} 54. Be8 {[%emt 0:00:33]} Kxh6 {[%emt 0:01:42]} 55. Kf3 {[%emt 0:00:01]} Kg7 {[%emt 0:02:52]} 56. Ke4 {[%emt 0:00:07]} Kf8 {[%emt 0:00:53]} 57. Bd7 {[%emt 0:00:01]} Rb7 {[%emt 0:02:06]} 58. Be6 {[%emt 0:01:07]} Rg7 {[%emt 0:00:50]} 59. Kd5 {[%emt 0:00:22]} Ke8 {[%emt 0:01:09]} 60. Kd6 {[%emt 0:00:07]} Rg5 {[%emt 0:01:21]} 61. Bd7+ {[%emt 0:00:45]} Kf7 {[%emt 0:00:00]} 62. a6 {[%emt 0:00:40]} Rg1 {[%emt 0:00:08]} 63. Kc7 {[%emt 0:00:42]} Ra1 {[%emt 0:00:02]} 64. Kb7 {[%emt 0:00:32]} Kf6 {[%emt 0:00:05]} 65. Kxa7 {[%emt 0:00:32]} Kf7 {[%emt 0:00:03]} 66. Kb7 {[%emt 0:00:13]} Kf6 {[%emt 0:00:05]} 67. a7 {[%emt 0:00:13]} Kf7 {[%emt 0:00:05]} 68. Kb6 {[%emt 0:00:39]} Rxa7 {[%emt 0:00:04]} 69. Kxa7 {[%emt 0:00:08]} Kf6 {[%emt 0:00:10]} 70. Kb6 {[%emt 0:00:16]} Kf7 {[%emt 0:00:03]} 71. Kc5 {[%emt 0:00:06]} Kf6 {[%emt 0:00:04]} 72. Kd5 {[%emt 0:00:08]} Kf7 {[%emt 0:00:04]} 73. Ke5 {[%emt 0:00:14]} Kg7 {[%emt 0:00:03]} 74. Kf5 {[%emt 0:00:18]} Kf7 {[%emt 0:00:10]} 75. Be6+ {[%emt 0:00:06]} Kg7 {[%emt 0:00:07]} 76. Kg5 {[%emt 0:00:27]} Kh7 {[%emt 0:00:06]} 77. Kf6 {[%emt 0:00:04]} Kh8 {[%emt 0:00:04]} 78. Ne5 {[%emt 0:00:06]} Kh7 {[%emt 0:00:07]} 79. Ng6 {[%emt 0:00:07]} Kh6 {[%emt 0:00:06]} 80. Bg8 {[%emt 0:00:09]} Kh5 {[%emt 0:00:04]} 81. Ne5 {[%emt 0:00:05]} Kh6 {[%emt 0:01:12]} 82. Ng4+ {[%emt 0:00:16]} Kh5 {[%emt 0:00:06]} 83. Kf5 {[%emt 0:00:06]} Kh4 {[%emt 0:00:00]} 84. Kf4 {[%emt 0:00:06]} Kh5 {[%emt 0:00:07]} 85. Bf7+ {[%emt 0:00:04]} Kh4 {[%emt 0:00:03]} 86. Ne3 {[%emt 0:00:32]} Kh3 {[%emt 0:00:02]} 87. Bg6 {[%emt 0:00:08]} Kh4 {[%emt 0:00:06]} 88. Ng2+ {[%emt 0:00:04]} Kh3 {[%emt 0:00:04]} 89. Kf3 {[%emt 0:00:04]} Kh2 {[%emt 0:00:06]} 90. Kf2 {[%emt 0:00:05]} Kh3 {[%emt 0:00:06]} 91. Bf5+ {[%emt 0:00:04]} Kh2 {[%emt 0:00:05]} 92. Ne3 {[%emt 0:00:13]} Kh1 {[%emt 0:00:08]} 93. Bg4 {[%emt 0:00:03]} 1-0